[Event "GrandPrix_29.05"]
[Site "Chess.com"]
[Date "2020.05.29"]
[Round "4"]
[White "sahidi"]
[Black "MilanovicDan"]
[Result "0-1"]
[WhiteElo "2073"]
[BlackElo "2366"]
[TimeControl "600+2"]
[EndTime "11:02:02 PDT"]
[Termination "MilanovicDan won on time"]

1. d4 {[%clk 0:10:01.9]} 1... Nf6 {[%clk 0:10:00.4]} 2. Nf3 {[%clk 0:10:00.8]}
2... c5 {[%clk 0:09:54.9]} 3. c3 {[%clk 0:09:58.6]} 3... Qc7 {[%clk 0:09:43.8]}
4. g3 {[%clk 0:09:45.8]} 4... g6 {[%clk 0:09:43.1]} 5. Bg2 {[%clk 0:09:44.7]}
5... Bg7 {[%clk 0:09:42.9]} 6. O-O {[%clk 0:09:42.4]} 6... O-O {[%clk
0:09:43.8]} 7. dxc5 {[%clk 0:09:32.3]} 7... Qxc5 {[%clk 0:09:43.7]} 8. Be3
{[%clk 0:09:32.9]} 8... Qc7 {[%clk 0:09:43.1]} 9. h3 {[%clk 0:09:30.8]} 9... b6
{[%clk 0:09:38.6]} 10. Na3 {[%clk 0:09:17.2]} 10... Bb7 {[%clk 0:09:34.9]} 11.
Qa4 {[%clk 0:08:54.9]} 11... d6 {[%clk 0:09:23.3]} 12. Rfd1 {[%clk 0:08:48.7]}
12... Nbd7 {[%clk 0:09:17.7]} 13. Qh4 {[%clk 0:08:13.1]} 13... a6 {[%clk
0:09:10.7]} 14. Bh6 {[%clk 0:08:00.7]} 14... b5 {[%clk 0:09:10.1]} 15. Be3
{[%clk 0:08:02.6]} 15... Rfe8 {[%clk 0:09:05.2]} 16. Bh6 {[%clk 0:08:04.5]}
16... Bh8 {[%clk 0:09:04.6]} 17. Be3 {[%clk 0:08:06.4]} 17... Rac8 {[%clk
0:08:59.6]} 18. Bh6 {[%clk 0:08:08.3]} 18... Qb8 {[%clk 0:08:47.3]} 19. Rac1
{[%clk 0:08:05.2]} 19... Rc5 {[%clk 0:08:38.6]} 20. g4 {[%clk 0:07:25.5]} 20...
Qa8 {[%clk 0:08:28.7]} 21. Nc2 {[%clk 0:07:16.2]} 21... a5 {[%clk 0:08:04.7]}
22. Ne3 {[%clk 0:07:01.6]} 22... Rec8 {[%clk 0:07:33.3]} 23. Nf5 {[%clk
0:06:53.5]} 23... Re8 {[%clk 0:06:55.6]} 24. Be3 {[%clk 0:06:22.4]} 24... gxf5
{[%clk 0:06:48.2]} 25. Bxc5 {[%clk 0:06:17.6]} 25... Nxc5 {[%clk 0:06:45.9]} 26.
Qg5+ {[%clk 0:06:11.4]} 26... Bg7 {[%clk 0:06:43.4]} 27. Qxf5 {[%clk 0:05:59.8]}
27... Be4 {[%clk 0:06:28.4]} 28. Qf4 {[%clk 0:05:53.2]} 28... Nd5 {[%clk
0:05:48.3]} 29. Qg3 {[%clk 0:05:27]} 29... b4 {[%clk 0:04:37]} 30. cxb4 {[%clk
0:04:52.4]} 30... axb4 {[%clk 0:04:36.7]} 31. Ng5 {[%clk 0:04:22]} 31... Bxg2
{[%clk 0:04:31.4]} 32. Qxg2 {[%clk 0:04:22.4]} 32... Nf4 {[%clk 0:04:24.3]} 33.
Qxa8 {[%clk 0:04:20.9]} 33... Rxa8 {[%clk 0:04:24.1]} 34. Kf1 {[%clk 0:04:17.2]}
34... h6 {[%clk 0:04:21.1]} 35. Nf3 {[%clk 0:04:14.2]} 35... Nxh3 {[%clk
0:04:17.1]} 36. Rc4 {[%clk 0:04:13.5]} 36... Rxa2 {[%clk 0:04:03.9]} 37. Rxb4
{[%clk 0:04:05.5]} 37... Rxb2 {[%clk 0:04:04.8]} 38. Rxb2 {[%clk 0:03:52]} 38...
Bxb2 {[%clk 0:04:06.7]} 39. e3 {[%clk 0:03:52]} 39... Bf6 {[%clk 0:04:04.2]} 40.
Kg2 {[%clk 0:03:48.2]} 40... Ng5 {[%clk 0:04:04.4]} 41. Nh4 {[%clk 0:03:43.7]}
41... e6 {[%clk 0:02:34.7]} 42. f4 {[%clk 0:02:55.1]} 42... Nge4 {[%clk
0:02:31.4]} 43. Nf3 {[%clk 0:02:55.1]} 43... Kg7 {[%clk 0:02:24.9]} 44. Rb1
{[%clk 0:02:27.3]} 44... Nc3 {[%clk 0:02:19.5]} 45. Rb6 {[%clk 0:02:11.7]} 45...
Nd1 {[%clk 0:01:44.6]} 46. Rxd6 {[%clk 0:01:56.1]} 46... Nxe3+ {[%clk
0:01:43.9]} 47. Kh3 {[%clk 0:01:51.2]} 47... Ne4 {[%clk 0:01:42.9]} 48. Rd7
{[%clk 0:01:43.1]} 48... Nf2+ {[%clk 0:01:42.8]} 49. Kg3 {[%clk 0:01:40.1]}
49... Nfxg4 {[%clk 0:01:22.8]} 50. Rb7 {[%clk 0:01:28.6]} 50... h5 {[%clk
0:01:22.4]} 51. Kh3 {[%clk 0:01:00.3]} 51... Nf5 {[%clk 0:01:17.7]} 52. Rb5
{[%clk 0:00:39.9]} 52... Nf2+ {[%clk 0:01:13.5]} 53. Kg2 {[%clk 0:00:37.5]}
53... Nd3 {[%clk 0:01:14.4]} 54. Ne5 {[%clk 0:00:29.1]} 54... Nxf4+ {[%clk
0:01:13.3]} 55. Kh1 {[%clk 0:00:24.5]} 55... Bxe5 {[%clk 0:00:58]} 56. Rxe5
{[%clk 0:00:18.6]} 56... Kf6 {[%clk 0:00:59.1]} 57. Ra5 {[%clk 0:00:10.4]} 57...
e5 {[%clk 0:00:59.4]} 58. Ra4 {[%clk 0:00:09]} 58... e4 {[%clk 0:00:59.4]} 59.
Kh2 {[%clk 0:00:10.9]} 59... e3 {[%clk 0:00:56.1]} 60. Rxf4 {[%clk 0:00:10.5]}
60... Ke5 {[%clk 0:00:51.1]} 61. Rf1 {[%clk 0:00:08.5]} 61... Ke4 {[%clk
0:00:49.3]} 62. Kg2 {[%clk 0:00:09.7]} 62... Nh4+ {[%clk 0:00:24.8]} 63. Kg3
{[%clk 0:00:09.4]} 63... Nf5+ {[%clk 0:00:25.9]} 64. Kg2 {[%clk 0:00:10.6]}
64... h4 {[%clk 0:00:18.9]} 65. Ra1 {[%clk 0:00:10.8]} 65... Nd4 {[%clk
0:00:18.6]} 66. Kh3 {[%clk 0:00:08.8]} 66... e2 {[%clk 0:00:15.9]} 0-1

[Event "GrandPrix_29.05"]
[Site "Chess.com"]
[Date "2020.05.29"]
[Round "4"]
[White "ninullia"]
[Black "WildBizon"]
[Result "1-0"]
[WhiteElo "2404"]
[BlackElo "2052"]
[TimeControl "600+2"]
[EndTime "11:02:10 PDT"]
[Termination "ninullia won by resignation"]

1. d4 {[%clk 0:09:59.1]} 1... Nf6 {[%clk 0:09:59.3]} 2. c4 {[%clk 0:09:59.6]}
2... b6 {[%clk 0:09:50.4]} 3. Nf3 {[%clk 0:09:58.6]} 3... Bb7 {[%clk 0:09:49.5]}
4. g3 {[%clk 0:09:59.8]} 4... g6 {[%clk 0:09:44.1]} 5. Bg2 {[%clk 0:09:53.7]}
5... Bg7 {[%clk 0:09:44.7]} 6. O-O {[%clk 0:09:48.9]} 6... O-O {[%clk
0:09:45.7]} 7. d5 {[%clk 0:09:28.8]} 7... Ne4 {[%clk 0:09:38.8]} 8. Qc2 {[%clk
0:09:11.7]} 8... f5 {[%clk 0:09:22.1]} 9. Ne1 {[%clk 0:09:04.4]} 9... e6 {[%clk
0:08:49.5]} 10. dxe6 {[%clk 0:08:52.3]} 10... dxe6 {[%clk 0:08:50.4]} 11. Nc3
{[%clk 0:08:53.9]} 11... Nd6 {[%clk 0:08:46.2]} 12. Bxb7 {[%clk 0:08:44]} 12...
Nxb7 {[%clk 0:08:48.1]} 13. Ng2 {[%clk 0:08:37.8]} 13... Nc6 {[%clk 0:08:46.1]}
14. Rd1 {[%clk 0:08:29.2]} 14... Qf6 {[%clk 0:08:47.2]} 15. e3 {[%clk
0:08:26.9]} 15... Rad8 {[%clk 0:08:37.2]} 16. Bd2 {[%clk 0:08:22.5]} 16... Ne5
{[%clk 0:08:38.2]} 17. Be1 {[%clk 0:08:04.6]} 17... Nxc4 {[%clk 0:08:09.2]} 18.
Ne4 {[%clk 0:08:04]} 18... fxe4 {[%clk 0:08:02.2]} 19. Qxc4 {[%clk 0:08:03.7]}
19... Nc5 {[%clk 0:07:57.7]} 20. Rab1 {[%clk 0:08:01.4]} 20... Rxd1 {[%clk
0:07:36.5]} 21. Rxd1 {[%clk 0:08:01]} 21... Qxb2 {[%clk 0:07:37.1]} 22. Nf4
{[%clk 0:08:00.5]} 22... Qf6 {[%clk 0:07:36.9]} 23. Bb4 {[%clk 0:07:56]} 23...
Re8 {[%clk 0:07:12.8]} 24. Bxc5 {[%clk 0:07:53.2]} 24... bxc5 {[%clk 0:07:14]}
25. Rd7 {[%clk 0:07:41.1]} 25... Bf8 {[%clk 0:06:50.6]} 26. Rxc7 {[%clk
0:07:16.2]} 26... g5 {[%clk 0:06:37.9]} 27. Qxe4 {[%clk 0:07:04]} 27... Qf5
{[%clk 0:05:26.6]} 28. Qxf5 {[%clk 0:06:56.2]} 28... exf5 {[%clk 0:05:28.5]} 29.
Nd5 {[%clk 0:06:57.2]} 29... Re6 {[%clk 0:05:28.3]} 30. Rxa7 {[%clk 0:06:47.6]}
30... Rc6 {[%clk 0:05:28.1]} 31. g4 {[%clk 0:05:59.8]} 31... fxg4 {[%clk
0:05:20.5]} 32. e4 {[%clk 0:05:59.6]} 32... c4 {[%clk 0:05:14.3]} 33. e5 {[%clk
0:05:58]} 33... Bc5 {[%clk 0:05:08.9]} 34. Rd7 {[%clk 0:05:27.1]} 34... h5
{[%clk 0:04:46.1]} 35. Kf1 {[%clk 0:04:46.2]} 35... Kf8 {[%clk 0:04:45.6]} 36.
a4 {[%clk 0:03:24.8]} 36... h4 {[%clk 0:03:43.4]} 37. a5 {[%clk 0:03:16.9]}
37... Ke8 {[%clk 0:02:51.6]} 38. Rb7 {[%clk 0:02:43.4]} 38... Kd8 {[%clk
0:02:41.4]} 39. Rg7 {[%clk 0:02:02.6]} 39... Bd4 {[%clk 0:02:31.2]} 40. Nb4
{[%clk 0:01:15.5]} 40... Rc7 {[%clk 0:01:15.8]} 41. Rxg5 {[%clk 0:01:04.9]}
41... c3 {[%clk 0:01:17]} 42. Nc2 {[%clk 0:00:43.2]} 42... Bc5 {[%clk
0:01:01.4]} 43. Rxg4 {[%clk 0:00:33.9]} 43... Be7 {[%clk 0:01:02.4]} 44. Ke2
{[%clk 0:00:28.4]} 44... Rc5 {[%clk 0:01:03.2]} 45. Rd4+ {[%clk 0:00:08.2]}
45... Kc7 {[%clk 0:01:01.6]} 46. f4 {[%clk 0:00:09.2]} 46... Rxa5 {[%clk
0:00:54.6]} 47. Rc4+ {[%clk 0:00:10.5]} 47... Kd7 {[%clk 0:00:55.4]} 48. Rxc3
{[%clk 0:00:11.3]} 48... Ke6 {[%clk 0:00:56.9]} 49. Ne3 {[%clk 0:00:11]} 49...
Ra2+ {[%clk 0:00:56]} 50. Rc2 {[%clk 0:00:09.6]} 50... Ra3 {[%clk 0:00:56.9]}
51. Rc6+ {[%clk 0:00:08]} 51... Kd7 {[%clk 0:00:58.2]} 52. Rc2 {[%clk
0:00:09.2]} 52... Bd8 {[%clk 0:00:56.7]} 53. f5 {[%clk 0:00:07.2]} 53... Bg5
{[%clk 0:00:52.4]} 54. Nc4 {[%clk 0:00:05.1]} 54... Rh3 {[%clk 0:00:52.4]} 55.
Nb6+ {[%clk 0:00:06.4]} 55... Ke7 {[%clk 0:00:51.6]} 56. Rc7+ {[%clk 0:00:07.4]}
56... Kd8 {[%clk 0:00:52.1]} 57. Rc8+ {[%clk 0:00:08.3]} 57... Ke7 {[%clk
0:00:53.1]} 58. Nd5+ {[%clk 0:00:08.2]} 58... Kd7 {[%clk 0:00:54]} 59. Nb6+
{[%clk 0:00:09.5]} 59... Ke7 {[%clk 0:00:55.5]} 60. f6+ {[%clk 0:00:10.9]} 60...
Ke6 {[%clk 0:00:55.1]} 61. Re8+ {[%clk 0:00:10]} 61... Kf7 {[%clk 0:00:56]} 62.
Re7+ {[%clk 0:00:10.3]} 62... Kg6 {[%clk 0:00:53.8]} 63. Rg7+ {[%clk 0:00:10.9]}
63... Kh6 {[%clk 0:00:55.2]} 64. Rxg5 {[%clk 0:00:04.7]} 64... Rxh2+ {[%clk
0:00:56.7]} 65. Ke3 {[%clk 0:00:05.6]} 65... Kxg5 {[%clk 0:00:30.7]} 66. f7
{[%clk 0:00:06.4]} 66... Rh3+ {[%clk 0:00:32.6]} 67. Ke4 {[%clk 0:00:07.7]}
67... Rh1 {[%clk 0:00:33.9]} 68. f8=Q {[%clk 0:00:08.8]} 68... Re1+ {[%clk
0:00:35.8]} 69. Kd5 {[%clk 0:00:10.2]} 69... Kg4 {[%clk 0:00:37]} 70. Qg7+
{[%clk 0:00:10.9]} 70... Kh3 {[%clk 0:00:37.8]} 71. Nc4 {[%clk 0:00:10.8]} 71...
Rd1+ {[%clk 0:00:38.9]} 72. Ke6 {[%clk 0:00:11.9]} 72... Rd3 {[%clk 0:00:40.1]}
73. Nd6 {[%clk 0:00:09.8]} 73... Kh2 {[%clk 0:00:40.5]} 74. Ne4 {[%clk
0:00:10.9]} 74... Rf3 {[%clk 0:00:40.4]} 75. Qg4 {[%clk 0:00:11.1]} 75... Rh3
{[%clk 0:00:39.1]} 76. Nf2 {[%clk 0:00:11.8]} 76... Rg3 {[%clk 0:00:38.4]} 77.
Qxh4+ {[%clk 0:00:13.2]} 77... Kg2 {[%clk 0:00:40.3]} 78. Qxg3+ {[%clk
0:00:14.2]} 78... Kxg3 {[%clk 0:00:41.9]} 79. Ne4+ {[%clk 0:00:16.1]} 1-0

[Event "GrandPrix_29.05"]
[Site "Chess.com"]
[Date "2020.05.29"]
[Round "4"]
[White "wannabe2700"]
[Black "v-kazakouski"]
[Result "0-1"]
[WhiteElo "2163"]
[BlackElo "2450"]
[TimeControl "600+2"]
[EndTime "11:02:22 PDT"]
[Termination "v-kazakouski won on time"]

1. e4 {[%clk 0:10:01.5]} 1... c5 {[%clk 0:10:00.1]} 2. d4 {[%clk 0:10:01.4]}
2... cxd4 {[%clk 0:09:59.9]} 3. Nf3 {[%clk 0:10:02.8]} 3... a6 {[%clk
0:09:59.8]} 4. Be2 {[%clk 0:09:50.7]} 4... d5 {[%clk 0:09:09.9]} 5. exd5 {[%clk
0:09:49.7]} 5... Nf6 {[%clk 0:09:00.1]} 6. Nxd4 {[%clk 0:09:37.3]} 6... Nxd5
{[%clk 0:08:55.9]} 7. O-O {[%clk 0:09:35.5]} 7... e5 {[%clk 0:08:51.2]} 8. Nf3
{[%clk 0:09:20.5]} 8... Nc6 {[%clk 0:08:47]} 9. Bc4 {[%clk 0:09:13.9]} 9... Nb6
{[%clk 0:06:30.2]} 10. Qxd8+ {[%clk 0:08:50.9]} 10... Nxd8 {[%clk 0:06:27.7]}
11. Nxe5 {[%clk 0:08:40.2]} 11... f6 {[%clk 0:05:55.5]} 12. Be3 {[%clk
0:08:35.8]} 12... Nxc4 {[%clk 0:03:56.2]} 13. Nxc4 {[%clk 0:08:35.6]} 13... b5
{[%clk 0:03:57]} 14. Nb6 {[%clk 0:08:29.5]} 14... Rb8 {[%clk 0:03:58.3]} 15.
Nxc8 {[%clk 0:08:23.7]} 15... Rxc8 {[%clk 0:04:00.2]} 16. c3 {[%clk 0:08:22.6]}
16... Ne6 {[%clk 0:04:00.4]} 17. b4 {[%clk 0:08:18.9]} 17... Bd6 {[%clk
0:03:54.9]} 18. a4 {[%clk 0:08:19.8]} 18... Kf7 {[%clk 0:03:48.3]} 19. axb5
{[%clk 0:08:20.4]} 19... axb5 {[%clk 0:03:50.2]} 20. Ra5 {[%clk 0:08:21.4]}
20... Be5 {[%clk 0:03:39.1]} 21. Rc1 {[%clk 0:08:13.9]} 21... Rhd8 {[%clk
0:03:39.5]} 22. Kf1 {[%clk 0:08:08.5]} 22... Ra8 {[%clk 0:02:36.8]} 23. Rxb5
{[%clk 0:07:49.1]} 23... Ra1 {[%clk 0:02:36.7]} 24. Ra5 {[%clk 0:07:37.2]} 24...
Rxa5 {[%clk 0:02:33.9]} 25. bxa5 {[%clk 0:07:39.1]} 25... Nc7 {[%clk 0:02:23]}
26. c4 {[%clk 0:07:12.2]} 26... Na6 {[%clk 0:02:21.9]} 27. Nd2 {[%clk
0:07:00.6]} 27... Rd3 {[%clk 0:02:18.2]} 28. Ke2 {[%clk 0:06:54.4]} 28... Ra3
{[%clk 0:02:19]} 29. Bb6 {[%clk 0:06:52.2]} 29... Ra2 {[%clk 0:02:19.9]} 30. g3
{[%clk 0:06:40.8]} 30... Nb4 {[%clk 0:02:12.5]} 31. c5 {[%clk 0:06:33.5]} 31...
Nc6 {[%clk 0:02:09.7]} 32. f4 {[%clk 0:06:33]} 32... Bb2 {[%clk 0:01:55.5]} 33.
Rc4 {[%clk 0:05:18.3]} 33... Ke6 {[%clk 0:01:36.2]} 34. Nf3 {[%clk 0:04:58.9]}
34... Ba1+ {[%clk 0:01:07.9]} 35. Kd1 {[%clk 0:04:31.1]} 35... Kd5 {[%clk
0:01:01.6]} 36. Rc2 {[%clk 0:04:24.4]} 36... Ra3 {[%clk 0:01:02.5]} 37. Rd2+
{[%clk 0:03:58.6]} 37... Kc4 {[%clk 0:00:39.1]} 38. Ne1 {[%clk 0:03:47.1]} 38...
Bc3 {[%clk 0:00:37.5]} 39. Nc2 {[%clk 0:03:47.4]} 39... Rb3 {[%clk 0:00:29.9]}
40. a6 {[%clk 0:03:32.4]} 40... Bxd2 {[%clk 0:00:24.9]} 41. Kxd2 {[%clk
0:03:31.6]} 41... Rd3+ {[%clk 0:00:16.6]} 42. Ke2 {[%clk 0:03:21.2]} 42... Rd7
{[%clk 0:00:17.4]} 43. Kf3 {[%clk 0:03:08.2]} 43... Kb5 {[%clk 0:00:13.8]} 44.
Ke4 {[%clk 0:02:50.8]} 44... Kxa6 {[%clk 0:00:11.6]} 45. Kf5 {[%clk 0:02:30.4]}
45... Rd2 {[%clk 0:00:12.3]} 46. Ne3 {[%clk 0:02:23.5]} 46... Rxh2 {[%clk
0:00:11.4]} 47. Nd5 {[%clk 0:02:15.9]} 47... Re2 {[%clk 0:00:11.8]} 48. Kg4
{[%clk 0:01:56.9]} 48... Kb7 {[%clk 0:00:11.8]} 49. Nc7 {[%clk 0:01:31.2]} 49...
Re7 {[%clk 0:00:11.8]} 50. Nd5 {[%clk 0:01:31.1]} 50... Rd7 {[%clk 0:00:12.7]}
51. Ne3 {[%clk 0:01:27.1]} 51... g6 {[%clk 0:00:13.6]} 52. Nc4 {[%clk
0:01:12.7]} 52... Rd4 {[%clk 0:00:14.7]} 53. Ne3 {[%clk 0:01:05.2]} 53... Ne7
{[%clk 0:00:15.1]} 54. Ba5 {[%clk 0:00:52.4]} 54... Re4 {[%clk 0:00:16.1]} 55.
Kf3 {[%clk 0:00:42.1]} 55... f5 {[%clk 0:00:16.9]} 56. g4 {[%clk 0:00:23.7]}
56... Ra4 {[%clk 0:00:17.4]} 57. Bd8 {[%clk 0:00:16.6]} 57... Nc6 {[%clk
0:00:18.5]} 58. Bf6 {[%clk 0:00:17.1]} 58... fxg4+ {[%clk 0:00:18.1]} 59. Kxg4
{[%clk 0:00:18.3]} 59... Re4 {[%clk 0:00:18.4]} 60. Nd5 {[%clk 0:00:18.7]} 60...
Re6 {[%clk 0:00:18.8]} 61. Kg5 {[%clk 0:00:19.7]} 61... Kc8 {[%clk 0:00:16.7]}
62. Kh6 {[%clk 0:00:19.2]} 62... Nb4 {[%clk 0:00:15.9]} 63. Nxb4 {[%clk
0:00:18.3]} 63... Rxf6 {[%clk 0:00:17.3]} 64. Kxh7 {[%clk 0:00:16.8]} 64... Rxf4
{[%clk 0:00:18.4]} 65. Nd5 {[%clk 0:00:18.2]} 65... g5 {[%clk 0:00:19.1]} 66.
Kg6 {[%clk 0:00:17.7]} 66... Rg4 {[%clk 0:00:16.6]} 67. Kf5 {[%clk 0:00:12.2]}
67... Rg1 {[%clk 0:00:16.1]} 68. c6 {[%clk 0:00:06.7]} 68... g4 {[%clk
0:00:14.7]} 0-1

[Event "GrandPrix_29.05"]
[Site "Chess.com"]
[Date "2020.05.29"]
[Round "4"]
[White "GrishaTheChamp"]
[Black "NikolaGry"]
[Result "1/2-1/2"]
[WhiteElo "2202"]
[BlackElo "2026"]
[TimeControl "600+2"]
[EndTime "11:02:25 PDT"]
[Termination "Game drawn by repetition"]

1. d4 {[%clk 0:10:01.9]} 1... d5 {[%clk 0:10:00.2]} 2. c4 {[%clk 0:10:02.5]}
2... Nc6 {[%clk 0:10:00.7]} 3. Nf3 {[%clk 0:09:46.3]} 3... Bg4 {[%clk
0:09:58.6]} 4. cxd5 {[%clk 0:09:28.6]} 4... Bxf3 {[%clk 0:09:57.8]} 5. dxc6
{[%clk 0:09:28]} 5... Bxc6 {[%clk 0:09:56.8]} 6. Nc3 {[%clk 0:09:29.3]} 6... e6
{[%clk 0:09:55.7]} 7. e4 {[%clk 0:09:28.1]} 7... Bb4 {[%clk 0:09:53.9]} 8. f3
{[%clk 0:09:29.4]} 8... Qh4+ {[%clk 0:09:49.7]} 9. g3 {[%clk 0:09:29.1]} 9...
Qf6 {[%clk 0:09:49.6]} 10. Be3 {[%clk 0:09:24.8]} 10... O-O-O {[%clk 0:09:14]}
11. Be2 {[%clk 0:09:15.7]} 11... Ne7 {[%clk 0:08:41.3]} 12. O-O {[%clk
0:09:14.6]} 12... Ba5 {[%clk 0:06:51]} 13. Qd2 {[%clk 0:08:15.1]} 13... Bb6
{[%clk 0:06:39]} 14. Rad1 {[%clk 0:07:56.5]} 14... Qg6 {[%clk 0:05:34.3]} 15. b4
{[%clk 0:07:08.7]} 15... h5 {[%clk 0:04:11.1]} 16. a4 {[%clk 0:07:00.2]} 16...
h4 {[%clk 0:03:46.5]} 17. g4 {[%clk 0:06:49.8]} 17... f5 {[%clk 0:02:48.4]} 18.
a5 {[%clk 0:06:30.1]} 18... fxg4 {[%clk 0:02:25.1]} 19. fxg4 {[%clk 0:06:28.9]}
19... Bxd4 {[%clk 0:01:56.8]} 20. Bxd4 {[%clk 0:06:29]} 20... e5 {[%clk
0:01:57.4]} 21. Qe3 {[%clk 0:06:30.5]} 21... exd4 {[%clk 0:01:41]} 22. Rxd4
{[%clk 0:06:32.4]} 22... b6 {[%clk 0:01:13.1]} 23. axb6 {[%clk 0:05:59.8]} 23...
axb6 {[%clk 0:01:12.7]} 24. Rc4 {[%clk 0:05:33.9]} 24... Kb8 {[%clk 0:01:02.9]}
25. Qf4 {[%clk 0:04:55.5]} 25... Qd6 {[%clk 0:00:39.5]} 26. Qxd6 {[%clk
0:04:43.8]} 26... Rxd6 {[%clk 0:00:40]} 27. Rf7 {[%clk 0:04:42.8]} 27... Ng6
{[%clk 0:00:18.7]} 28. Rf5 {[%clk 0:04:07.2]} 28... Re8 {[%clk 0:00:18]} 29. b5
{[%clk 0:04:05.5]} 29... Bd7 {[%clk 0:00:17]} 30. Rg5 {[%clk 0:03:55.5]} 30...
Ne5 {[%clk 0:00:17.4]} 31. Rb4 {[%clk 0:03:52.2]} 31... g6 {[%clk 0:00:18.1]}
32. Rb1 {[%clk 0:03:24.8]} 32... Bc8 {[%clk 0:00:16.5]} 33. Rf1 {[%clk
0:02:36.4]} 33... Bb7 {[%clk 0:00:16.3]} 34. Kf2 {[%clk 0:01:21.3]} 34... Nf7
{[%clk 0:00:13.5]} 35. e5 {[%clk 0:01:10.4]} 35... Rxe5 {[%clk 0:00:10.2]} 36.
Rxe5 {[%clk 0:01:09.7]} 36... Nxe5 {[%clk 0:00:11.1]} 37. Ke3 {[%clk 0:01:08.8]}
37... Re6 {[%clk 0:00:09.7]} 38. Kd2 {[%clk 0:01:09.5]} 38... g5 {[%clk
0:00:10.2]} 39. Rf5 {[%clk 0:01:05]} 39... h3 {[%clk 0:00:10.1]} 40. Rxg5 {[%clk
0:01:04.9]} 40... Nf3+ {[%clk 0:00:11]} 41. Bxf3 {[%clk 0:01:05.5]} 41... Bxf3
{[%clk 0:00:11.5]} 42. Rg8+ {[%clk 0:01:01.7]} 42... Kb7 {[%clk 0:00:12.3]} 43.
g5 {[%clk 0:01:03.1]} 43... Re5 {[%clk 0:00:12]} 44. g6 {[%clk 0:01:03.4]} 44...
Rg5 {[%clk 0:00:12.1]} 45. g7 {[%clk 0:00:27.1]} 45... Bh5 {[%clk 0:00:10]} 46.
Ne4 {[%clk 0:00:20.9]} 46... Rg2+ {[%clk 0:00:10.2]} 47. Ke3 {[%clk 0:00:22]}
47... Bf7 {[%clk 0:00:10.8]} 48. Rh8 {[%clk 0:00:20.6]} 48... Rxg7 {[%clk
0:00:11]} 49. Rxh3 {[%clk 0:00:21.4]} 49... Bc4 {[%clk 0:00:10.3]} 50. Nc3
{[%clk 0:00:18.8]} 50... Rg5 {[%clk 0:00:09.3]} 51. Kd4 {[%clk 0:00:18.9]} 51...
Bxb5 {[%clk 0:00:09.3]} 52. Rg3 {[%clk 0:00:15.5]} 52... Rxg3 {[%clk 0:00:08.5]}
53. hxg3 {[%clk 0:00:17.4]} 53... Bd7 {[%clk 0:00:08]} 54. Nd5 {[%clk
0:00:16.9]} 54... c5+ {[%clk 0:00:08.6]} 55. Kc3 {[%clk 0:00:17]} 55... Kc6
{[%clk 0:00:09.6]} 56. Nf6 {[%clk 0:00:18.2]} 56... Bc8 {[%clk 0:00:09.9]} 57.
g4 {[%clk 0:00:19.2]} 57... b5 {[%clk 0:00:10.9]} 58. g5 {[%clk 0:00:19.2]}
58... b4+ {[%clk 0:00:11.7]} 59. Kb2 {[%clk 0:00:19.5]} 59... Be6 {[%clk
0:00:11.2]} 60. g6 {[%clk 0:00:20.1]} 60... c4 {[%clk 0:00:12]} 61. g7 {[%clk
0:00:13.1]} 61... c3+ {[%clk 0:00:12.7]} 62. Kc1 {[%clk 0:00:13.6]} 62... b3
{[%clk 0:00:12.6]} 63. g8=Q {[%clk 0:00:11.7]} 63... Bxg8 {[%clk 0:00:11.2]} 64.
Nxg8 {[%clk 0:00:13.6]} 64... Kd5 {[%clk 0:00:10.8]} 65. Ne7+ {[%clk 0:00:12.4]}
65... Ke4 {[%clk 0:00:11.4]} 66. Nc6 {[%clk 0:00:12.4]} 66... Ke3 {[%clk
0:00:11.6]} 67. Nb4 {[%clk 0:00:12.8]} 67... Kd4 {[%clk 0:00:10.7]} 68. Nc2+
{[%clk 0:00:08.4]} 68... Kc4 {[%clk 0:00:11.6]} 69. Ne3+ {[%clk 0:00:07.9]}
69... Kb5 {[%clk 0:00:12.4]} 70. Nc2 {[%clk 0:00:06.3]} 70... Kc4 {[%clk
0:00:12.9]} 71. Ne3+ {[%clk 0:00:07.5]} 71... Kd3 {[%clk 0:00:12.9]} 72. Nc2
{[%clk 0:00:08.5]} 72... b2+ {[%clk 0:00:13.2]} 73. Kb1 {[%clk 0:00:09.6]} 73...
Kd2 {[%clk 0:00:14.4]} 74. Na3 {[%clk 0:00:11]} 74... Kd1 {[%clk 0:00:15.4]} 75.
Nc2 {[%clk 0:00:12.9]} 75... Kd2 {[%clk 0:00:16.5]} 76. Na3 {[%clk 0:00:14.8]}
76... Kd3 {[%clk 0:00:17.5]} 77. Nc2 {[%clk 0:00:16.7]} 77... Kd2 {[%clk
0:00:18.9]} 1/2-1/2